bitfinex/quotes_SOLUSD_20250226
["timestamp","ask_amount","ask_price","bid_price","bid_amount"]
[1740572134595,81.13,138.57,138.54,20.0]
[1740572136379,81.13,138.57,138.56,20.0]
[1740572136580,0.03,138.57,138.56,20.0]
[1740572138805,0.03,138.57,138.56,27.217]
[1740572138993,0.03,138.57,138.56,45.86664886]
[1740572139196,0.03,138.57,138.56,46.29313357]
[1740572139395,0.03,138.57,138.56,129.33529514]
[1740572139585,81.1,138.63,138.61,20.0]
[1740572140481,0.03,138.65,138.61,27.2144]
[1740572142110,0.03,138.65,138.61,20.0]
[1740572142283,81.1,138.64,138.59,6.76]
[1740572142883,81.1,138.64,138.55,95.8718]
[1740572143079,81.1,138.63,138.58,20.0]
[1740572143301,81.1,138.62,138.55,12.9718]
[1740572143493,81.1,138.61,138.55,20.1893]
[1740572143691,81.1,138.61,138.55,6.2118]
[1740572143878,81.1,138.61,138.54,133.68]
[1740572144079,81.1,138.6,138.54,133.68]
[1740572144315,88.3155,138.59,138.54,133.68]
[1740572144505,81.1,138.58,138.54,133.68]
[1740572144926,81.1,138.57,138.54,133.68]
[1740572146218,81.1,138.56,138.54,133.68]
[1740572150931,81.1,138.6,138.54,140.8981]
[1740572151098,81.1,138.6,138.55,6.1573]
[1740572151703,81.1,138.64,138.56,19.07613357]
[1740572151910,81.1,138.63,138.56,19.07613357]
[1740572152932,81.1,138.63,138.56,7.217]
[1740572153242,81.1,138.63,138.56,25.86664886]
[1740572153409,81.1,138.63,138.57,19.07613357]
[1740572154111,81.1,138.63,138.6,20.0]
[1740572154730,81.1,138.63,138.61,20.0]
[1740572154940,81.1,138.63,138.62,7.2139]
[1740572155598,81.1,138.63,138.58,6.76]
[1740572155998,81.1,138.63,138.59,20.0]
[1740572156200,81.1,138.63,138.57,7.2165]
[1740572156407,81.1,138.62,138.57,7.2165]
[1740572157008,81.1,138.62,138.59,20.0]
[1740572158208,81.1,138.62,138.55,6.1573]
[1740572158416,81.1,138.62,138.56,7.217]
[1740572158631,81.1,138.62,138.59,20.0]
[1740572158834,81.1,138.62,138.56,7.217]
[1740572159207,88.3139,138.62,138.56,7.217]
[1740572159812,81.1,138.61,138.56,7.217]
[1740572160932,81.24216157,138.6,138.54,133.68]
[1740572161230,81.24216157,138.6,138.54,140.8979]
[1740572161830,0.14216157,138.58,138.54,133.68]
[1740572162936,7.2165,138.57,138.54,133.68]
[1740572163136,81.1,138.56,138.54,133.68]
[1740572165042,0.14216157,138.54,138.53,0.063]
[1740572166343,20.72429514,138.54,138.53,0.063]
[1740572166505,21.72429514,138.54,138.53,0.063]
[1740572167011,28.94239514,138.54,138.53,0.063]
[1740572167223,19.21829514,138.51,138.5,0.063]
[1740572167627,20.21829514,138.51,138.5,0.063]
[1740572168421,21.21829514,138.51,138.5,0.0001]
[1740572168633,39.21829514,138.48,138.46,0.063]
[1740572168833,6.76,138.47,138.46,0.063]
[1740572169031,34.19999514,138.47,138.46,0.063]
[1740572170426,42.47449514,138.47,138.46,0.063]
[1740572172147,1.6454,138.47,138.46,0.063]
[1740572172447,20.0,138.48,138.46,0.063]
[1740572173146,19.07613357,138.5,138.46,0.063]
[1740572173724,18.64964886,138.5,138.46,0.063]
[1740572174157,0.14216157,138.49,138.46,0.063]
[1740572174331,18.64964886,138.5,138.46,0.063]
[1740572174332,12.84371295,138.51,138.46,0.063]
[1740572174652,81.1,138.5,138.46,0.063]
[1740572175543,81.1,138.49,138.46,0.063]
[1740572175921,81.1,138.51,138.46,6.6401]
[1740572176124,81.1,138.51,138.47,7.2217]
[1740572176925,81.1,138.51,138.47,25.2761]
[1740572177625,81.1,138.56,138.48,152.83613357]
[1740572177828,81.1,138.55,138.48,152.83613357]
[1740572178256,81.1,138.55,138.49,7.2207]
[1740572178457,81.1,138.55,138.49,25.2725]
[1740572179151,81.1,138.57,138.52,20.0]
[1740572179353,81.1,138.61,138.55,6.2143]
[1740572179667,81.13,138.62,138.56,19.07613357]
[1740572179842,81.13,138.62,138.59,20.0]
[1740572179843,0.03,138.62,138.59,20.0]
[1740572180757,0.03,138.62,138.59,27.2155]
[1740572181223,0.03,138.62,138.59,20.0]
[1740572181430,0.03,138.62,138.57,7.2165]
[1740572182376,0.03,138.62,138.58,0.14216157]
[1740572182586,0.03,138.62,138.6,20.0]
[1740572182758,0.03,138.62,138.6,26.76]
[1740572183677,0.03,138.62,138.59,133.7]
[1740572184458,0.03,138.62,138.59,140.9154]
[1740572188963,0.03,138.62,138.59,158.9542]
[1740572189782,0.03,138.62,138.61,39.07613357]
[1740572189971,0.03,138.62,138.61,45.81613357]
[1740572190374,0.03,138.63,138.61,45.81613357]
[1740572190375,0.03,138.63,138.62,0.14216157]
[1740572190669,0.03,138.65,138.62,90.25606157]
[1740572190879,0.03,138.65,138.64,26.5374]
[1740572192382,0.03,138.65,138.64,20.0]
[1740572192580,0.03,138.65,138.64,27.2129]
[1740572192781,0.03,138.65,138.64,20.0]
[1740572193270,0.03,138.65,138.64,27.2129]
[1740572194405,0.03,138.65,138.64,46.43119514]
[1740572194575,0.03,138.69,138.68,20.0]
[1740572195990,0.03,138.69,138.66,13.9518]
[1740572196494,0.03,138.69,138.68,39.07613357]
[1740572196714,0.03,138.69,138.68,52.56633357]
[1740572197299,0.03,138.69,138.68,26.2794]
[1740572198283,0.03,138.69,138.68,33.4902]
[1740572198493,0.03,138.69,138.68,26.2794]
[1740572198805,0.03,138.69,138.64,6.2746]
[1740572198981,0.03,138.69,138.64,13.4872]
[1740572199179,0.03,138.69,138.65,20.0]
[1740572199799,81.1,138.68,138.62,13.9538]
[1740572200803,88.3113,138.68,138.62,13.9538]
[1740572201017,81.1,138.68,138.62,13.9538]
[1740572201499,88.3109,138.68,138.62,13.9538]
[1740572201811,81.1,138.68,138.63,19.07613357]
[1740572202680,0.03,138.69,138.67,19.21829514]
[1740572202882,0.03,138.69,138.68,32.91453357]
[1740572204014,0.03,138.69,138.68,0.42648471]
[1740572204187,0.03,138.69,138.65,8.16368861]
[1740572204389,0.03,138.69,138.6,13.6881]
[1740572204390,87.87,138.69,138.6,13.6881]
[1740572204607,87.87,138.69,138.6,6.4732]
[1740572204977,88.3404,138.69,138.63,20.0]
[1740572205297,88.3403,138.69,138.63,20.0]
[1740572205602,81.13,138.69,138.63,20.0]
[1740572205806,81.13,138.69,138.65,20.0]
[1740572207402,1.72376157,138.68,138.6,6.4732]
[1740572207701,81.1,138.67,138.59,140.9153]
[1740572207903,81.24216157,138.66,138.59,140.9153]
[1740572208213,81.1,138.65,138.59,133.7]
[1740572208996,81.1,138.65,138.59,140.9154]
[1740572209205,81.1,138.64,138.59,133.7]
[1740572209805,81.1,138.64,138.62,20.0]
[1740572210006,81.1,138.63,138.58,7.2158]
[1740572210214,81.24216157,138.62,138.54,7.2181]
[1740572210506,81.1,138.61,138.56,20.0]
[1740572211296,81.1,138.61,138.57,20.0]
[1740572211809,81.1,138.61,138.58,20.0]
[1740572212397,81.1,138.6,138.54,7.2179]
[1740572212599,81.1,138.59,138.54,7.2179]
[1740572212796,81.1,138.58,138.57,20.0]
[1740572213198,81.1,138.58,138.52,7.2191]
[1740572213505,81.1,138.58,138.55,20.0]
[1740572214208,81.1,138.61,138.55,20.0]
[1740572215320,81.1,138.61,138.57,20.0]
[1740572215486,81.1,138.61,138.56,26.29313357]
[1740572215900,81.1,138.61,138.56,44.33583357]
[1740572216192,81.1,138.64,138.6,20.0]
[1740572216705,81.1,138.64,138.6,153.62]
[1740572217087,1.6116,138.68,138.6,153.62]
[1740572217088,81.1,138.67,138.6,153.62]
[1740572217518,81.1,138.67,138.61,7.2144]
[1740572219808,81.1,138.67,138.61,25.2506]
[1740572220811,0.03,138.68,138.65,27.2124]
[1740572221329,0.03,138.68,138.65,7.2124]
[1740572222024,0.0001,138.68,138.67,2.56864628]
[1740572222198,5.97e-05,138.7,138.69,20.56864628]
[1740572222397,5.97e-05,138.7,138.69,104.46864628]
[1740572222596,5.97e-05,138.7,138.69,103.46864628]
[1740572222792,5.97e-05,138.7,138.69,111.67894628]
[1740572222999,5.97e-05,138.7,138.69,130.32859514]
[1740572223716,5.97e-05,138.71,138.7,0.14216157]
[1740572224008,5.97e-05,138.71,138.7,7.35196157]
[1740572224217,5.97e-05,138.71,138.7,110.32809514]
[1740572224806,5.97e-05,138.71,138.7,111.32809514]
[1740572225712,5.97e-05,138.71,138.7,112.84129474]
[1740572226100,5.97e-05,138.71,138.7,109.32809514]
[1740572226297,5.97e-05,138.74,138.73,20.0]
[1740572226517,5.97e-05,138.74,138.73,153.56]
[1740572227713,5.97e-05,138.74,138.73,160.7682]
[1740572230523,5.97e-05,138.74,138.73,262.88649514]
[1740572230729,5.97e-05,138.75,138.74,0.14216157]
[1740572230910,5.97e-05,138.76,138.74,110.70705274]
[1740572231115,5.97e-05,138.77,138.76,39.21829514]
[1740572231325,0.03,138.88,138.81,19.07613357]
[1740572231533,0.03,138.88,138.81,89.78]
[1740572231703,0.03,138.88,138.82,7.2035]
[1740572232325,81.1,138.87,138.81,14.084]
[1740572232929,81.1,138.87,138.79,89.78]
[1740572234028,81.1,138.87,138.79,96.9849]
[1740572235330,81.1,138.87,138.79,89.78]
[1740572235630,88.301,138.87,138.79,89.78]
[1740572236006,81.24216157,138.86,138.79,6.88]
[1740572236209,81.24216157,138.86,138.79,140.34]
[1740572236433,81.1,138.85,138.79,140.34]
[1740572236637,81.1,138.84,138.79,140.34]
[1740572237132,81.1,138.84,138.79,147.5448]
[1740572237335,81.1,138.84,138.79,140.34]
[1740572237521,81.1,138.84,138.79,147.5451]
[1740572238212,81.1,138.84,138.79,140.34]
[1740572239122,20.0,138.8,138.74,6.0758]
[1740572239331,81.1,138.79,138.71,1.5808]
[1740572239518,81.1,138.79,138.7,6.4701]
[1740572239705,0.14216157,138.78,138.7,6.4701]
[1740572239904,81.1,138.79,138.71,7.209]
[1740572240508,81.1,138.81,138.71,227.309]
[1740572240707,81.1,138.81,138.72,0.14216157]
[1740572241012,81.1,138.81,138.77,0.063]
[1740572241210,81.1,138.8,138.77,0.063]
[1740572242026,81.1,138.8,138.77,7.2691]
[1740572242625,81.1,138.8,138.77,0.063]
[1740572245037,81.24216157,138.79,138.77,0.063]
[1740572245233,81.1,138.79,138.77,0.063]
[1740572247521,81.24216157,138.78,138.77,0.063]
[1740572247839,20.14216157,138.79,138.77,0.063]
[1740572248036,21.75386157,138.79,138.77,0.063]
[1740572248335,25.87379514,138.78,138.77,0.063]
[1740572248539,26.87379514,138.78,138.77,0.063]
[1740572248757,0.14216157,138.77,138.75,133.44]
[1740572249256,0.14216157,138.77,138.7,7.2097]
[1740572250327,7.34876157,138.77,138.7,20.0]
[1740572250535,7.34876157,138.77,138.68,7.2108]
[1740572250832,0.14216157,138.75,138.68,7.2108]
[1740572251152,19.07613357,138.74,138.67,140.6712]
[1740572251519,1.5859,138.72,138.65,7.2124]
[1740572252749,1.5859,138.72,138.69,0.063]
[1740572252954,81.1,138.71,138.69,0.063]
[1740572253250,101.31829514,138.7,138.69,0.063]
[1740572253452,0.56864628,138.68,138.63,0.063]
[1740572253821,0.56864628,138.66,138.63,0.063]
[1740572254044,0.14216157,138.64,138.63,0.063]
[1740572254245,81.1,138.65,138.63,0.063]
[1740572254448,0.14216157,138.64,138.63,0.063]
[1740572256246,7.212,138.66,138.63,0.063]
[1740572256427,0.14216157,138.65,138.63,0.063]
[1740572256949,7.49612314,138.66,138.63,0.063]
[1740572258665,1.14216157,138.64,138.63,0.063]
[1740572258854,21.14216157,138.62,138.61,0.063]
[1740572259167,40.21829514,138.62,138.61,0.063]
[1740572259751,40.21829514,138.62,138.56,133.563]
[1740572259752,20.21829514,138.61,138.56,133.563]
[1740572259949,19.21829514,138.59,138.56,133.563]
[1740572260468,19.21829514,138.57,138.56,0.063]
[1740572260684,20.21829514,138.57,138.56,0.063]
[1740572260856,35.61279514,138.57,138.56,0.0001]
[1740572261188,36.61279514,138.57,138.56,0.0001]
[1740572262282,39.21829514,138.54,138.53,0.063]
[1740572262572,7.08216157,138.54,138.53,0.063]
[1740572262765,0.14216157,138.56,138.53,0.063]
[1740572263478,1.523,138.57,138.53,0.063]
[1740572263708,6.1356,138.61,138.53,0.063]
[1740572263860,1.5418,138.62,138.55,20.0]
[1740572264251,1.5418,138.62,138.56,7.217]
[1740572264774,6.96,138.64,138.56,7.28]
[1740572264988,0.14216157,138.63,138.56,7.28]
[1740572265179,6.96,138.64,138.56,25.3227]
[1740572266289,6.96,138.64,138.56,18.1057]
[1740572266455,81.1,138.63,138.57,133.62]
[1740572266860,0.2,186.9,138.57,133.62]
[1740572266861,81.1,138.72,138.63,2.0]
[1740572267084,81.1,138.74,138.67,20.0]
[1740572267277,81.1,138.73,138.61,6.5701]
[1740572267479,0.14216157,138.71,138.62,7.56648471]
[1740572267690,81.1,138.72,138.65,20.0]
[1740572267897,81.1,138.71,138.65,20.0]
[1740572268197,81.1,138.71,138.65,27.2122]
[1740572269797,81.1,138.71,138.65,20.0]
[1740572270396,81.1,138.71,138.65,27.2124]
[1740572271196,81.1,138.71,138.66,20.0]
[1740572271697,81.24216157,138.7,138.63,7.14]
[1740572272073,81.1,138.69,138.63,7.14]
[1740572272391,81.1,138.68,138.61,6.5701]
[1740572272592,81.1,138.68,138.61,13.6901]
[1740572273003,81.1,138.68,138.61,20.9043]
[1740572274573,81.1,138.68,138.61,13.6901]
[1740572274774,81.24216157,138.67,138.61,13.6901]
[1740572274971,0.14216157,138.65,138.61,6.5701]
[1740572275171,81.1,138.64,138.58,1.6228]
[1740572275368,0.14216157,138.63,138.57,147.0813]
[1740572276872,81.1,138.64,138.57,154.2977]
[1740572277271,81.1,138.63,138.57,154.2977]
[1740572277678,81.1,138.62,138.57,154.2977]
[1740572277881,81.1,138.62,138.57,147.0813]
[1740572278488,81.1,138.61,138.57,147.0813]
[1740572278709,7.63898471,138.65,138.57,147.0813]
[1740572278710,81.1,138.6,138.57,133.62]
[1740572278890,81.1,138.59,138.57,133.62]
[1740572281481,81.1,138.59,138.57,140.8364]
[1740572281893,81.1,138.59,138.57,133.62]
[1740572286310,81.1,138.59,138.56,0.063]
[1740572287508,81.1,138.59,138.57,20.0]
[1740572288599,81.13,138.59,138.57,20.0]
[1740572289793,81.13,138.59,138.56,0.063]
[1740572290111,81.13,138.59,138.58,20.0]
[1740572291319,81.13,138.59,138.56,0.063]
[1740572291498,81.1,138.58,138.56,0.063]
[1740572292097,81.24216157,138.57,138.56,0.063]
[1740572292305,0.14216157,138.57,138.56,0.063]
[1740572293216,0.03,138.59,138.56,0.063]
[1740572293394,0.17216157,138.59,138.56,0.063]
[1740572293725,0.14216157,138.58,138.56,0.063]
[1740572294914,0.03,138.59,138.56,0.063]
[1740572296519,81.13,138.59,138.56,0.063]
[1740572302319,0.03,138.59,138.57,6.3517]
[1740572302797,81.1,138.62,138.57,6.3517]
[1740572302999,81.1,138.67,138.6,20.0]
[1740572303495,81.1,138.66,138.61,7.2144]
[1740572303896,81.1,138.65,138.61,7.2144]
[1740572304099,81.1,138.64,138.61,7.2144]
[1740572304301,81.1,138.63,138.61,7.2144]
[1740572305108,81.1,138.63,138.59,7.2155]
[1740572305916,81.1,138.63,138.59,25.2543]
[1740572308229,81.1,138.63,138.59,7.2155]
[1740572309008,81.1,138.63,138.59,25.2543]
[1740572309623,81.1,138.63,138.62,20.0]
[1740572309828,81.1,138.66,138.62,20.0]
[1740572310633,81.1,138.66,138.64,20.0]
[1740572310925,0.03,138.68,138.64,20.0]
[1740572311822,0.03,138.68,138.64,27.2124]
[1740572313524,0.03,138.66,138.64,27.2124]
[1740572313710,0.03,138.66,138.64,20.0]
[1740572315347,0.03,138.66,138.64,27.2128]
[1740572315510,0.03,138.66,138.64,20.0]
[1740572315714,0.03,138.66,138.61,82.9]
[1740572315947,81.13,138.66,138.6,7.215]
[1740572316123,0.14216157,138.65,138.59,7.2154]
[1740572316311,81.13,138.66,138.59,7.2154]
[1740572317209,100.033972,138.65,138.57,140.0117]
[1740572317430,0.14216157,138.63,138.57,140.0117]
[1740572317711,7.35576157,138.63,138.57,147.228]
[1740572317910,0.14216157,138.63,138.57,147.228]
[1740572318433,7.35586157,138.63,138.57,147.228]
[1740572318812,0.14216157,138.63,138.57,147.228]
[1740572319135,81.1,138.64,138.57,165.2694]
[1740572319941,88.3129,138.64,138.57,165.2694]
[1740572320318,0.14216157,138.63,138.57,147.228]
[1740572321126,88.3131,138.64,138.57,13.568]
[1740572321529,0.14216157,138.63,138.57,13.568]
[1740572321921,81.1,138.62,138.57,13.568]
[1740572322116,81.1,138.61,138.56,0.063]
[1740572322316,81.1,138.61,138.56,7.2799]
[1740572322739,81.24216157,138.6,138.56,0.063]
[1740572323236,81.1,138.59,138.56,7.28]
[1740572323427,81.1,138.58,138.56,7.28]
[1740572323740,81.1,138.62,138.56,14.24]
[1740572323934,81.1,138.62,138.57,6.4453]
[1740572324441,81.1,138.62,138.6,20.0]
[1740572324733,81.1,138.65,138.6,20.0]
[1740572325435,81.1,138.65,138.61,20.0]
[1740572325741,81.1,138.65,138.61,26.94]
[1740572325939,81.1,138.65,138.63,7.2134]
[1740572326446,0.03,138.66,138.63,7.2134]
[1740572326632,0.03,138.66,138.62,20.0]
[1740572326937,0.03,138.66,138.61,14.1542]
[1740572330123,0.17216157,138.66,138.61,6.94]
[1740572330450,81.1,138.65,138.59,7.2153]
[1740572331242,81.24216157,138.64,138.57,13.6616]
[1740572331427,0.03,138.66,138.58,0.28432314]
[1740572331627,0.03,138.66,138.6,20.0]
[1740572332443,0.03,138.66,138.61,7.2144]
[1740572332628,0.03,138.66,138.61,14.1544]
[1740572332833,0.03,138.66,138.61,32.1906]
[1740572333425,0.03,138.66,138.61,14.1544]
[1740572336255,0.17216157,138.66,138.61,7.2144]
[1740572336451,81.1,138.65,138.61,7.2144]
[1740572338051,81.1,138.65,138.59,18.1017]
[1740572339428,0.03,138.66,138.63,6.6105]
[1740572340141,0.03,138.66,138.65,27.2124]
[1740572341628,0.03,138.66,138.65,27.49672314]
[1740572343233,0.03,138.66,138.65,27.2124]
[1740572345129,0.03,138.66,138.65,7.2124]
[1740572345957,0.03,138.66,138.65,27.2124]
[1740572346451,0.03,138.66,138.65,7.2124]
[1740572346835,0.03,138.66,138.65,27.2124]
[1740572348139,80.76,138.7,138.65,27.2124]
[1740572349462,0.03,138.66,138.65,27.2124]
[1740572351561,0.03,138.66,138.63,223.1105]
[1740572351938,0.03,138.66,138.63,133.6]
[1740572352154,80.79,138.66,138.63,133.6]
[1740572352471,80.90216157,138.65,138.59,0.063]
[1740572352671,80.76,138.64,138.59,0.063]
[1740572353967,80.76,138.64,138.59,0.34732314]
[1740572354442,80.76,138.64,138.61,20.0]
[1740572354645,80.76,138.64,138.63,20.0]
[1740572354946,0.03,138.66,138.63,33.2349]
[1740572355765,0.03,138.66,138.63,40.4481]
[1740572356068,0.03,138.66,138.63,33.2349]
[1740572356468,0.03,138.66,138.63,40.4483]
[1740572356764,0.03,138.66,138.63,26.86]
[1740572357164,0.03,138.66,138.63,34.0733]
[1740572357769,0.03,138.66,138.64,19.07613357]
[1740572357938,80.76,138.72,138.67,20.0]
[1740572358851,80.76,138.74,138.68,6.0285]
[1740572359541,80.76,138.76,138.7,7.2098]
[1740572359952,80.76,138.76,138.7,25.2343]
[1740572360148,80.76,138.76,138.7,7.2098]
[1740572361161,80.76,138.76,138.7,25.2343]
[1740572362351,0.03,138.74,138.7,25.2343]
[1740572363351,0.03,138.74,138.73,20.0]
[1740572363750,0.03,138.74,138.73,27.2082]
[1740572364365,0.03,138.77,138.74,0.28432314]
[1740572364565,0.03,138.77,138.73,134.9688]
[1740572365287,0.03,138.77,138.73,34.0482]
[1740572365580,80.76,138.76,138.71,7.2092]
[1740572365747,80.76,138.75,138.7,18.0233]
[1740572367871,80.76,138.75,138.7,25.2331]
[1740572368083,80.76,138.75,138.7,7.2098]
[1740572369775,80.76,138.75,138.7,18.0245]
[1740572370074,80.76,138.75,138.69,7.2103]
[1740572370652,7.2066,138.76,138.69,7.2103]
[1740572370653,80.76,138.74,138.69,7.2103]
[1740572371162,80.76,138.73,138.69,7.2103]
[1740572371364,80.76,138.72,138.68,133.56]
[1740572371570,80.90216157,138.71,138.68,133.56]
[1740572372464,88.11136157,138.71,138.68,133.56]
[1740572373076,80.76,138.71,138.68,133.56]
[1740572374681,87.9694,138.71,138.68,133.56]
[1740572374891,0.14216157,138.7,138.68,133.56]
[1740572375058,0.14216157,138.7,138.63,6.903]
[1740572375059,0.14216157,138.68,138.63,0.063]
[1740572375383,80.76,138.67,138.63,0.063]
[1740572376314,7.35406157,138.66,138.63,0.063]
[1740572376589,80.76,138.65,138.63,0.063]
[1740572376883,80.76,138.64,138.63,0.063]
[1740572378283,80.76,138.67,138.63,0.063]
[1740572378483,80.76,138.67,138.64,20.0]
[1740572379302,80.76,138.7,138.65,6.2755]
[1740572380574,80.76,138.7,138.66,25.2415]
[1740572383903,87.9678,138.74,138.66,25.2415]
[1740572384206,80.76,138.73,138.66,25.2415]
[1740572384904,80.76,138.73,138.68,7.2108]
[1740572385989,87.9682,138.73,138.68,7.2108]
[1740572386195,87.9682,138.73,138.66,7.2114]
[1740572386681,87.9682,138.73,138.68,0.063]
[1740572386881,7.2092,138.71,138.68,0.063]
[1740572387082,80.76,138.7,138.68,0.063]
[1740572387300,80.90216157,138.69,138.68,0.063]
[1740572388082,80.76,138.69,138.68,0.063]
[1740572388282,80.90216157,138.69,138.68,0.063]
[1740572388495,19.21829514,138.69,138.68,0.063]
[1740572388989,26.42859514,138.69,138.68,0.063]
[1740572390806,20.56864628,138.65,138.63,0.063]
[1740572391008,0.14216157,138.62,138.59,0.063]
[1740572391210,6.84,138.64,138.59,0.063]
[1740572392110,26.82,138.64,138.59,0.063]
[1740572392891,34.033,138.64,138.59,0.063]
[1740572395495,6.82,138.64,138.59,0.063]
[1740572396405,14.0329,138.64,138.59,0.063]
[1740572397298,81.1,138.63,138.59,0.063]
[1740572399110,88.3134,138.63,138.59,0.063]
[1740572401221,81.1,138.63,138.59,0.063]
[1740572401720,87.9,138.66,138.59,0.063]
[1740572402232,95.1119,138.66,138.59,0.063]
[1740572402400,100.31829514,138.65,138.59,0.063]
[1740572403007,81.1,138.65,138.59,0.063]
[1740572403195,88.3125,138.65,138.59,0.063]
[1740572403712,19.07613357,138.64,138.59,0.063]
[1740572405319,88.3134,138.63,138.59,0.063]
[1740572405615,0.14216157,138.61,138.59,0.063]
[1740572406619,81.1,138.6,138.59,0.063]
[1740572406821,0.14216157,138.61,138.59,0.063]
[1740572407021,42.8660795,138.6,138.59,0.063]
[1740572407522,50.0810795,138.6,138.59,0.063]
[1740572411500,49.93891793,138.6,138.59,0.063]
[1740572411723,30.86278436,138.6,138.59,0.063]
[1740572412509,31.00494593,138.6,138.59,0.063]
[1740572412909,50.0810795,138.6,138.59,0.063]
[1740572413118,51.0810795,138.6,138.59,0.063]
[1740572413920,51.0810795,138.6,138.59,0.0001]
[1740572414126,52.0810795,138.6,138.59,0.0001]
[1740572415505,41.21829514,138.57,138.56,0.0001]
[1740572415827,47.97829514,138.57,138.56,0.0001]
[1740572416035,49.63779514,138.57,138.56,0.0001]
[1740572417227,56.85429514,138.57,138.56,0.0001]
[1740572417433,41.21829514,138.54,138.53,0.0001]
[1740572418503,46.43639514,138.54,138.53,0.0001]
[1740572418927,27.2181,138.54,138.53,0.0001]
[1740572419427,7.2177,138.55,138.53,0.0001]
[1740572421419,19.21829514,138.54,138.53,0.0001]
[1740572421736,20.21829514,138.54,138.53,0.0001]
[1740572422117,19.21829514,138.54,138.53,0.0001]
[1740572422633,26.29423357,138.54,138.53,0.0001]
[1740572424412,26.43639514,138.54,138.53,0.0001]
[1740572427813,26.00991043,138.54,138.53,0.0001]
[1740572428013,7.2155,138.59,138.53,6.4895]
[1740572428313,7.2451,138.6,138.53,6.4895]
[1740572428935,3.57920969,138.59,138.53,6.4895]
[1740572429321,0.14216157,138.58,138.53,6.4895]
[1740572429725,0.14216157,138.58,138.53,13.7078]
[1740572430133,3.57920969,138.59,138.53,13.7078]
[1740572430438,0.14216157,138.58,138.53,13.7078]
[1740572431021,0.03,138.6,138.53,13.7078]
[1740572431534,0.03,138.6,138.53,31.7544]
[1740572431736,0.03,138.6,138.56,20.0]
[1740572431935,81.13,138.6,138.56,20.0]
[1740572433433,81.13,138.6,138.57,7.2165]
[1740572436450,0.03,138.6,138.59,1.5495]
[1740572437034,0.03,138.63,138.6,19.07613357]
[1740572438223,0.03,138.63,138.62,26.71656157]
[1740572438428,81.1,138.68,138.62,26.71656157]
[1740572439130,81.1,138.68,138.63,0.14216157]
[1740572439920,81.1,138.68,138.64,1.5376]
[1740572440330,81.1,138.68,138.65,7.2124]
[1740572442126,81.1,138.71,138.67,20.0]
[1740572442325,81.1,138.71,138.67,27.2108]
[1740572442733,81.1,138.71,138.66,20.0]
[1740572442938,88.3093,138.71,138.64,8.7503]
[1740572443224,81.1,138.7,138.64,28.7503]
[1740572443538,81.1,138.69,138.64,8.7503]
[1740572444931,88.3103,138.69,138.64,1.5376]